bitfinex-derivatives/quotes_SOLF0:USTF0_20241024
["timestamp","ask_amount","ask_price","bid_price","bid_amount"]
[1729750047141,4.18,173.84,173.8,1.10018]
[1729750047440,7.10061633,173.83,173.81,1.44014083]
[1729750047632,7.10061633,173.83,173.78,2.35017]
[1729750047831,9.97981633,173.83,173.79,3.74442455]
[1729750048037,9.97981633,173.83,173.8,1.44016329]
[1729750048237,9.97981633,173.83,173.81,1.44016329]
[1729750048436,9.97981633,173.83,173.79,1.10015]
[1729750048637,9.97981633,173.83,173.8,1.44015976]
[1729750048836,9.97981633,173.83,173.81,1.44015976]
[1729750049042,9.97981633,173.83,173.78,4.0787]
[1729750049343,9.97981633,173.83,173.79,6.62413225]
[1729750049531,9.97981633,173.83,173.79,5.183966]
[1729750049735,9.97981633,173.83,173.8,1.44016477]
[1729750050029,9.97981633,173.83,173.81,1.44016477]
[1729750050235,9.97981633,173.83,173.79,3.97985]
[1729750050431,9.97981633,173.83,173.8,1.44016477]
[1729750050634,9.97981633,173.83,173.81,1.44016477]
[1729750050845,9.97981633,173.83,173.79,1.10015]
[1729750051032,9.97981633,173.83,173.8,1.44016477]
[1729750051231,9.97981633,173.83,173.79,1.10015]
[1729750051232,9.97981633,173.83,173.81,1.44016477]
[1729750051439,9.97981633,173.83,173.79,1.10015]
[1729750051636,9.97981633,173.83,173.8,1.44022226]
[1729750051844,9.97981633,173.83,173.81,1.44022226]
[1729750052044,9.97981633,173.83,173.79,1.10015]
[1729750052340,9.97981633,173.83,173.8,1.44022226]
[1729750052643,9.97981633,173.83,173.81,1.44022226]
[1729750052845,9.97981633,173.83,173.79,1.10015]
[1729750053041,9.97981633,173.83,173.8,1.44021564]
[1729750053243,9.97981633,173.83,173.81,1.44021564]
[1729750053442,9.97981633,173.83,173.79,1.10015]
[1729750053646,9.97981633,173.83,173.8,3.74456006]
[1729750053845,9.97981633,173.83,173.81,1.44021541]
[1729750054041,2.8792,173.83,173.79,2.8797]
[1729750054246,2.8792,173.83,173.8,3.74456305]
[1729750054451,2.8792,173.83,173.81,1.44021656]
[1729750054745,2.8792,173.83,173.82,1.44021656]
[1729750056051,11.28061633,173.84,173.82,1.44021656]
[1729750056251,14.15951633,173.84,173.79,3.97985]
[1729750056652,14.15951633,173.84,173.8,1.44021665]
[1729750057150,14.15951633,173.84,173.81,3.74462923]
[1729750057453,14.15951633,173.84,173.82,1.44024201]
[1729750057652,14.15951633,173.84,173.83,1.44024201]
[1729750058951,14.15951633,173.84,173.79,3.97985]
[1729750059147,14.15951633,173.84,173.8,9.03702576]
[1729750059453,14.15951633,173.84,173.81,3.74456329]
[1729750059655,14.15951633,173.84,173.82,1.44021665]
[1729750059849,14.15951633,173.84,173.83,1.44021665]
[1729750060453,14.15951633,173.84,173.79,3.97985]
[1729750060653,14.15951633,173.84,173.8,9.03943025]
[1729750060950,14.15951633,173.84,173.81,3.74468542]
[1729750061146,14.15951633,173.84,173.82,1.44026362]
[1729750061346,14.15951633,173.84,173.83,1.44026362]
[1729750061551,2.8794,173.82,173.73,7.10061633]
[1729750061751,7.10061633,173.81,173.74,14.70277116]
[1729750061954,4.26,173.82,173.78,9.98031633]
[1729750062255,4.26,173.82,173.79,7.60215483]
[1729750062450,4.26,173.82,173.78,9.98031633]
[1729750062451,4.26,173.82,173.8,7.60120539]
[1729750062653,4.26,173.82,173.81,2.30453516]
[1729750063244,4.26,173.82,173.81,5.18393516]
[1729750063456,2.8786,173.86,173.81,6.28418516]
[1729750063457,4.26,173.85,173.81,6.28418516]
[1729750063646,4.26,173.85,173.82,2.30434014]
[1729750063859,4.26,173.85,173.81,3.97965]
[1729750064257,4.26,173.85,173.82,2.30434016]
[1729750064459,4.26,173.85,173.81,11.08026633]
[1729750064656,4.26,173.85,173.82,2.30432525]
[1729750064863,4.26,173.85,173.81,11.08026633]
[1729750065052,4.26,173.85,173.82,2.30432525]
[1729750065251,7.10061633,173.86,173.82,2.8792]
[1729750065455,7.10061633,173.86,173.83,2.30432762]
[1729750065456,11.36061633,173.86,173.83,2.30432762]
[1729750065660,11.36061633,173.86,173.81,8.20086633]
[1729750065870,11.36061633,173.86,173.82,2.30430127]
[1729750066059,11.36061633,173.86,173.81,8.20086633]
[1729750066262,11.36061633,173.86,173.82,7.59642581]
[1729750066448,11.36061633,173.86,173.83,2.30430229]
[1729750066653,11.36061633,173.86,173.81,11.08016633]
[1729750066849,11.36061633,173.86,173.82,7.59616184]
[1729750067055,7.10061633,173.83,173.8,1.10025]
[1729750067256,4.26,173.86,173.77,3.7287]
[1729750067257,4.26,173.86,173.81,2.30433699]
[1729750067452,4.26,173.86,173.77,1.15144]
[1729750067453,7.10061633,173.82,173.77,1.15144]
[1729750067659,11.36061633,173.82,173.78,2.30436829]
[1729750067854,11.36061633,173.82,173.79,7.59729575]
[1729750068055,11.36061633,173.82,173.8,7.59729575]
[1729750068362,11.36061633,173.82,173.81,2.30436829]
[1729750068861,14.23981633,173.82,173.81,2.30436829]
[1729750069059,14.23981633,173.82,173.76,2.8802]
[1729750069060,11.36061633,173.82,173.78,1.10022]
[1729750069262,11.36061633,173.82,173.79,7.59750888]
[1729750069456,11.36061633,173.82,173.8,2.30445673]
[1729750069657,11.36061633,173.82,173.78,1.10025]
[1729750069859,11.36061633,173.82,173.79,7.59735984]
[1729750070065,11.36061633,173.82,173.8,2.3044591]
[1729750070262,11.36061633,173.82,173.78,1.10025]
[1729750070464,11.36061633,173.82,173.79,7.59709751]
[1729750070666,14.24001633,173.82,173.8,2.30446909]
[1729750070958,14.24001633,173.82,173.78,1.10025]
[1729750071163,14.24001633,173.82,173.79,7.59809986]
[1729750071361,14.24001633,173.82,173.78,1.10025]
[1729750071659,14.24001633,173.82,173.79,2.30445872]
[1729750071866,14.24001633,173.82,173.79,4.60891744]
[1729750072066,14.24001633,173.82,173.8,2.30445872]
[1729750072265,14.24001633,173.82,173.78,1.10025]
[1729750072465,14.24001633,173.82,173.79,7.59778973]
[1729750072667,14.24001633,173.82,173.8,2.3044691]
[1729750072862,14.24001633,173.82,173.78,1.10025]
[1729750073167,14.24001633,173.82,173.79,7.59779117]
[1729750073463,14.24001633,173.82,173.8,9.03807376]
[1729750073662,14.24001633,173.82,173.81,1.44028259]
[1729750074056,14.24001633,173.82,173.78,1.10025]
[1729750074262,14.24001633,173.82,173.79,9.03860824]
[1729750074469,14.24001633,173.82,173.8,3.74480199]
[1729750074666,14.24001633,173.82,173.81,1.44028111]
[1729750075162,14.24001633,173.82,173.78,1.10025]
[1729750075368,14.24001633,173.82,173.79,9.03851141]
[1729750075557,14.24001633,173.82,173.8,9.03851141]
[1729750075756,14.24001633,173.82,173.81,1.44028111]
[1729750078662,14.24001633,173.82,173.78,1.10025]
[1729750078867,14.24001633,173.82,173.81,1.44027939]
[1729750079668,4.26,173.82,173.81,1.44027939]
[1729750079868,4.22,173.83,173.81,1.44027939]
[1729750080063,4.22,173.83,173.82,1.44027939]
[1729750080565,7.0991,173.83,173.82,1.44027939]
[1729750081157,7.0991,173.83,173.79,8.20086633]
[1729750081557,7.0991,173.83,173.8,5.29284234]
[1729750081760,7.0991,173.83,173.81,3.74469824]
[1729750081958,7.0991,173.83,173.82,1.44026855]
[1729750088459,7.0991,173.83,173.82,1.44025569]
[1729750089160,7.0991,173.83,173.8,5.29341951]
[1729750089365,7.0991,173.83,173.81,6.73526661]
[1729750089560,7.0991,173.83,173.82,1.44025668]
[1729750090168,4.22,173.83,173.77,1.10025]
[1729750090370,7.10061633,173.82,173.78,9.04186572]
[1729750090564,4.22,173.83,173.79,9.04186572]
[1729750090873,4.22,173.83,173.78,7.10061633]
[1729750090874,7.0991,173.83,173.8,3.74508036]
[1729750091070,7.0991,173.83,173.81,1.44041552]
[1729750091270,7.0991,173.83,173.82,1.44041552]
[1729750092175,7.0991,173.83,173.82,1.4403202]
[1729750092778,2.8791,173.83,173.82,1.4403202]
[1729750092979,7.0991,173.83,173.82,1.4403202]
[1729750094074,7.0986,173.86,173.82,10.84540481]
[1729750094266,7.0986,173.86,173.83,1.4403202]
[1729750094471,7.0986,173.86,173.84,1.4403202]
[1729750094776,7.0986,173.86,173.83,1.10012]
[1729750094977,7.0986,173.86,173.84,1.44021386]
[1729750095179,7.0986,173.86,173.83,1.10012]
[1729750095370,7.0986,173.86,173.84,1.44019095]
[1729750095566,7.0986,173.86,173.83,1.10012]
[1729750095774,7.0986,173.86,173.84,1.44019095]
[1729750095974,7.0986,173.86,173.83,1.10012]
[1729750096175,7.0986,173.86,173.84,1.44019095]
[1729750096376,7.0986,173.86,173.85,1.44019095]
[1729750097979,14.19921633,173.86,173.85,1.44019095]
[1729750099376,2.8788,173.85,173.82,1.10012]
[1729750099577,2.8788,173.85,173.83,2.30420494]
[1729750099883,2.8788,173.85,173.84,3.74433303]
[1729750103180,9.97941633,173.85,173.84,1.44012809]
[1729750103393,2.8791,173.83,173.8,1.15127]
[1729750103573,2.8791,173.83,173.81,6.73085679]
[1729750103775,2.8791,173.83,173.8,1.10025]
[1729750103776,2.8791,173.83,173.82,9.03510251]
[1729750103977,9.97971633,173.83,173.82,9.03510251]
[1729750104280,9.97971633,173.83,173.82,1.44015357]
[1729750104783,9.97971633,173.83,173.7,3.6776]
[1729750104784,7.10061633,173.83,173.71,7.10061633]
[1729750104985,7.10061633,173.75,173.72,7.60073218]
[1729750105191,3.5947,173.85,173.7,4.82927]
[1729750105192,7.10061633,173.73,173.7,3.52868]
[1729750105488,7.10061633,173.73,173.71,7.60166196]
[1729750105785,7.10061633,173.73,173.72,7.60166196]
[1729750106187,9.98131633,173.73,173.72,7.60166196]
[1729750106382,9.98131633,173.73,173.72,2.30527954]
[1729750106584,7.10061633,173.73,173.67,1.10025]
[1729750106792,7.10061633,173.7,173.68,5.29577912]
[1729750106991,4.16,173.69,173.67,1.15217]
[1729750107193,4.16,173.69,173.68,7.60138917]
[1729750110088,4.16,173.69,173.68,2.30549325]
[1729750110280,4.16,173.69,173.68,2.30550224]
[1729750110479,4.16,173.69,173.68,7.58951653]
[1729750110685,4.16,173.69,173.68,8.68973653]
[1729750113885,4.16,173.69,173.68,1.10022]
[1729750114090,4.16,173.69,173.68,3.40572025]
[1729750114288,4.16,173.69,173.68,6.3780424]
[1729750115592,4.16,173.69,173.68,1.10022]
[1729750115985,4.16,173.69,173.68,6.37242892]
[1729750116393,4.16,173.69,173.68,1.10022]
[1729750116583,4.16,173.69,173.68,2.54115617]
[1729750117680,4.16,173.69,173.68,1.10022]
[1729750117881,4.16,173.69,173.68,2.54115741]
[1729750118784,4.16,173.69,173.68,7.80985345]
[1729750118991,4.16,173.69,173.68,2.54115741]
[1729750120498,2.8807,173.74,173.7,2.8812]
[1729750120696,4.16,173.71,173.7,9.98181633]
[1729750120990,4.16,173.72,173.7,11.42259623]
[1729750121198,4.16,173.72,173.7,11.08203633]
[1729750122390,4.16,173.72,173.7,3.98142]
[1729750122790,9.98121633,173.74,173.7,3.98142]
[1729750123096,4.16,173.73,173.7,3.98142]
[1729750124493,11.26061633,173.73,173.69,1.10009]
[1729750124791,11.26061633,173.73,173.68,7.5711237]
[1729750124990,11.26061633,173.73,173.68,3.98165]
[1729750124991,2.8811,173.71,173.68,3.98165]
[1729750125298,2.8811,173.71,173.69,1.4408218]
[1729750125490,2.8811,173.71,173.68,2.8815]
[1729750125791,2.8811,173.71,173.69,1.440861]
[1729750125997,2.8809,173.72,173.68,2.8815]
[1729750126195,4.16,173.73,173.7,2.8812]
[1729750126497,1.2919,173.77,173.68,5.26523215]
[1729750126498,4.16,173.72,173.68,5.26523215]
[1729750126698,4.16,173.72,173.69,4.32213391]
[1729750126999,4.16,173.71,173.69,2.8813]
[1729750127396,4.16,173.7,173.69,8.20080633]
[1729750127596,4.16,173.7,173.69,9.6416353]
[1729750127793,4.16,173.7,173.69,9.64163435]
[1729750128599,4.16,173.72,173.69,9.64163435]
[1729750128800,4.16,173.73,173.69,8.20080633]
[1729750129700,4.16,173.73,173.7,9.98181633]
[1729750130090,4.16,173.73,173.7,11.08200633]
[1729750131394,4.16,173.73,173.71,2.881]
[1729750131588,1.2919,173.77,173.71,2.881]
[1729750131792,14.14091633,173.76,173.71,3.98119]
[1729750132000,14.14091633,173.76,173.71,1.10019]
[1729750132198,7.10061633,173.75,173.71,1.10019]
[1729750132397,9.98111633,173.75,173.71,1.10019]
[1729750132801,7.10061633,173.75,173.71,1.10019]
[1729750133300,4.16,173.74,173.71,1.10019]
[1729750133493,4.16,173.74,173.71,3.98109]
[1729750133690,4.16,173.74,173.71,1.10019]
[1729750134101,7.10061633,173.75,173.71,1.10019]
[1729750134302,4.14,173.74,173.71,1.10019]
[1729750135295,4.14,173.74,173.72,2.8808]
[1729750136000,4.14,173.74,173.72,3.98099]
[1729750137999,4.14,173.74,173.72,2.8808]
[1729750138807,4.14,173.74,173.72,3.98099]
[1729750140215,11.24061633,173.74,173.72,3.98099]
[1729750140401,11.24061633,173.74,173.72,2.8808]
[1729750141501,7.10061633,173.73,173.71,1.10019]
[1729750141697,7.10061633,173.73,173.65,9.40587046]
[1729750141897,7.10061633,173.7,173.66,9.01111261]
[1729750142096,11.24061633,173.7,173.67,1.4409287]
[1729750142300,11.24061633,173.7,173.66,1.15217]
[1729750142301,11.24061633,173.7,173.68,1.44093566]
[1729750142504,11.24061633,173.7,173.66,1.10028]
[1729750142710,11.24061633,173.7,173.67,1.44093611]
[1729750142909,4.14,173.7,173.66,1.15217]
[1729750143106,11.24061633,173.7,173.67,1.44093637]
[1729750143406,7.10061633,173.68,173.66,2.30549667]
[1729750143615,7.10061633,173.67,173.64,8.67281643]
[1729750143810,7.10061633,173.67,173.65,1.44112145]
[1729750144113,7.10061633,173.67,173.64,3.40580667]
[1729750144299,4.14,173.66,173.64,1.10031]
[1729750145304,4.14,173.66,173.64,1.15243]
[1729750145811,4.14,173.66,173.64,1.10028]
[1729750146413,4.14,173.66,173.63,1.10028]
[1729750146707,7.10061633,173.65,173.63,1.10028]
[1729750147115,9.98271633,173.65,173.61,154.06013646]
[1729750147310,7.10061633,173.64,173.62,1.44131065]
[1729750147515,7.10061633,173.64,173.59,1.1686]
[1729750147516,7.10061633,173.64,173.59,1.15257]
[1729750147711,7.10061633,173.61,173.6,6.70922259]
[1729750148008,11.24061633,173.61,173.6,1.44139632]
[1729750148214,20.27055178,173.75,173.6,1.44139632]
[1729750148423,7.10061633,173.64,173.59,12.3684426]
[1729750148712,4.14,173.63,173.6,1.44144261]
[1729750148903,4.14,173.63,173.59,5.26782627]
[1729750149108,4.14,173.63,173.6,1.44144613]
[1729750149510,4.14,173.63,173.6,2.59414613]
[1729750150416,4.14,173.63,173.6,1.1527]
[1729750152318,4.14,173.63,173.6,4.0356]
[1729750153218,4.14,173.63,173.6,1.1527]
[1729750153417,7.0224,173.63,173.59,4.0357]
[1729750154017,7.0224,173.63,173.59,3.98315]
[1729750154617,4.14,173.63,173.61,2.8827]
[1729750155019,4.14,173.63,173.61,3.98285]
[1729750156711,7.10061633,173.65,173.61,3.98285]
[1729750156917,4.14,173.65,173.64,2.8821]
[1729750157318,4.14,173.65,173.64,3.98225]
[1729750158323,4.14,173.66,173.64,3.98225]
[1729750165937,11.24061633,173.66,173.62,5.42390592]
[1729750166225,11.24061633,173.66,173.62,2.8824]
[1729750166427,11.24061633,173.66,173.62,8.14899301]
[1729750166731,14.12251633,173.66,173.62,1.10012]
[1729750167030,7.10061633,173.65,173.6,7.80902341]
[1729750167223,7.10061633,173.65,173.6,6.36758686]
[1729750167725,7.10061633,173.65,173.6,1.10012]
[1729750167923,2.8823,173.64,173.6,1.10012]
[1729750168127,7.10061633,173.63,173.59,2.883]
[1729750168330,4.12,173.62,173.59,7.10061633]
[1729750168520,4.12,173.61,173.59,7.10061633]
[1729750168717,4.12,173.61,173.6,2.8827]
[1729750168927,4.12,173.61,173.6,4.03527]
[1729750169724,4.12,173.61,173.6,2.8827]
[1729750169924,4.12,173.61,173.6,4.03527]
[1729750171233,4.12,173.61,173.6,5.4768856]
[1729750171932,4.12,173.61,173.6,12.57750193]
[1729750172128,4.12,173.61,173.6,11.13588633]
[1729750172535,4.12,173.61,173.6,5.47687909]
[1729750172732,4.12,173.61,173.6,12.57749542]
[1729750172931,4.12,173.61,173.6,17.85481298]
[1729750173725,4.12,173.61,173.6,12.57749542]
[1729750173931,4.12,173.61,173.6,17.8536227]
[1729750174626,9.44831633,173.65,173.6,17.8536227]
[1729750174627,4.12,173.62,173.61,2.8827]
[1729750174831,4.12,173.64,173.62,7.10061633]
[1729750175032,4.12,173.64,173.63,7.10061633]
[1729750175733,4.12,173.64,173.63,8.54207527]
[1729750175928,4.12,173.64,173.63,7.10061633]
[1729750177442,4.12,173.64,173.62,11.13558633]
[1729750179738,2.882,173.66,173.62,11.13558633]
[1729750179739,2.8814,173.69,173.64,2.8821]
[1729750179948,4.12,173.68,173.65,7.10061633]
[1729750181735,4.12,173.68,173.64,4.03467]
[1729750189550,11.22061633,173.68,173.64,4.03467]
[1729750194051,11.22061633,173.68,173.64,2.8821]
[1729750196456,11.22061633,173.68,173.64,9.98271633]
[1729750198257,2.882,173.66,173.63,1.15257]
[1729750198459,7.10061633,173.67,173.62,7.10061633]
[1729750198663,7.10061633,173.67,173.63,1.44147145]
[1729750198962,7.10061633,173.67,173.62,7.10061633]
[1729750199146,7.10061633,173.67,173.61,1.15257]
[1729750199147,7.10061633,173.67,173.63,1.44146976]
[1729750199347,9.98241633,173.67,173.62,2.8825]
[1729750199553,9.98241633,173.67,173.62,9.98311633]
[1729750199749,9.98241633,173.67,173.63,1.44151631]
[1729750199953,9.98241633,173.67,173.62,9.98311633]
[1729750200851,2.8818,173.67,173.62,9.98311633]
[1729750201056,2.8818,173.67,173.63,1.44151799]
[1729750201365,2.8818,173.67,173.62,9.98311633]
[1729750201562,2.8818,173.67,173.63,1.44151968]
[1729750201761,2.8818,173.67,173.62,9.98311633]
[1729750202060,2.8818,173.67,173.63,1.4415194]
[1729750202261,2.8818,173.67,173.62,9.98311633]
[1729750202564,2.8818,173.67,173.63,6.72264843]
[1729750202761,2.8818,173.67,173.64,1.44142173]
[1729750202964,2.8818,173.67,173.62,9.98311633]
[1729750203163,2.8818,173.67,173.63,6.72329415]
[1729750203360,2.8818,173.67,173.64,1.44141762]
[1729750203560,2.8818,173.67,173.62,9.98311633]
[1729750203762,2.8818,173.67,173.63,6.724527]
[1729750203963,2.8818,173.67,173.64,1.44139656]
[1729750204166,2.8818,173.67,173.62,9.98311633]
[1729750204366,2.8818,173.67,173.63,6.72645383]
[1729750204569,2.8818,173.67,173.64,6.72645383]
[1729750204759,2.8818,173.67,173.62,9.98311633]
[1729750205064,2.8818,173.67,173.63,6.72643052]
[1729750205264,2.8818,173.67,173.64,6.72643052]
[1729750205464,2.8818,173.67,173.65,1.44138244]
[1729750205653,2.8818,173.67,173.63,7.10061633]
[1729750205857,71.71251633,173.74,173.66,7.10061633]
[1729750206061,71.71251633,173.74,173.69,7.10061633]
[1729750206254,64.6119,173.74,173.69,7.10061633]
[1729750206460,4.12,173.73,173.69,7.10061633]
[1729750206767,4.12,173.73,173.71,7.10061633]
[1729750206969,62.22,173.74,173.71,7.10061633]
[1729750207167,4.12,173.72,173.71,7.10061633]
[1729750207369,4.12,173.72,173.71,13.8246803]
[1729750207759,4.12,173.72,173.71,6.72406397]
[1729750207958,4.12,173.72,173.7,7.10061633]
[1729750208264,4.12,173.72,173.71,1.44097321]
[1729750208561,62.22,173.74,173.71,8.54158954]
[1729750208761,62.22,173.74,173.69,1.0999]
[1729750208762,62.22,173.74,173.73,7.10061633]
[1729750208962,4.12,173.74,173.73,8.54158954]
[1729750209164,4.12,173.74,173.73,7.10061633]
[1729750210569,136.50350239,173.77,173.73,7.10061633]
[1729750210765,4.12,173.76,173.73,7.10061633]
[1729750212071,62.22,173.83,173.74,7.10061633]
[1729750212260,7.10061633,173.82,173.76,7.10061633]
[1729750212469,62.22,173.83,173.72,1.0999]
[1729750212470,4.12,173.81,173.77,8.54108182]
[1729750212665,4.12,173.81,173.75,7.10061633]
[1729750212968,7.10061633,173.76,173.71,1.10009]
[1729750213164,11.22061633,173.76,173.72,6.71949731]
[1729750213361,11.22061633,173.76,173.7,2.881]
[1729750213362,7.10061633,173.74,173.7,2.881]
[1729750213572,7.10061633,173.74,173.71,6.71853335]
[1729750213869,7.10061633,173.74,173.72,1.4407746]
[1729750214066,9.98121633,173.74,173.71,1.10009]
[1729750214258,7.10061633,173.74,173.71,1.10009]
[1729750215070,7.10061633,173.74,173.7,3.98129]
[1729750215373,7.10061633,173.74,173.71,1.44085482]
[1729750215566,7.10061633,173.74,173.7,3.98129]
[1729750215869,7.10061633,173.74,173.71,1.44085482]
[1729750216071,7.10061633,173.74,173.71,1.10009]
[1729750216573,7.10061633,173.74,173.68,9.61951633]
[1729750216875,7.10061633,173.73,173.69,9.59826376]
[1729750217070,4.12,173.72,173.7,6.71704261]
[1729750217261,4.12,173.72,173.71,1.44085334]
[1729750217875,4.12,173.72,173.69,3.98149]
[1729750218076,4.12,173.72,173.69,2.8814]
[1729750218674,4.12,173.72,173.71,1.44085458]
[1729750219874,4.12,173.72,173.69,3.9814]
[1729750220076,4.12,173.72,173.7,6.71644311]
[1729750220264,4.12,173.72,173.7,4.32205334]
[1729750220469,4.12,173.72,173.7,2.8812]
[1729750220967,4.12,173.72,173.7,3.9812]
[1729750227679,4.12,173.72,173.7,1.1]
[1729750229077,11.22061633,173.72,173.69,1.1]
[1729750229277,11.22061633,173.72,173.65,2.8819]
[1729750229278,7.10061633,173.7,173.65,2.8819]
[1729750229473,7.10061633,173.7,173.66,1.44115005]
[1729750229674,2.8815,173.69,173.64,9.98281633]
[1729750229869,4.12,173.68,173.65,5.2747439]
[1729750230074,4.12,173.68,173.64,11.08284633]
[1729750230276,11.22061633,173.68,173.64,1.10003]
[1729750230475,11.22061633,173.68,173.65,1.4412817]
[1729750230673,11.22061633,173.68,173.64,1.10003]
[1729750230870,2.8818,173.67,173.65,1.44126894]
[1729750231075,2.8818,173.67,173.61,1.2042]
[1729750231271,2.8818,173.67,173.62,13.81771722]
[1729750231474,2.8818,173.67,173.64,7.10061633]
[1729750231673,2.8818,173.67,173.64,8.20064633]
[1729750232071,4.12,173.68,173.64,8.20064633]
[1729750232272,4.12,173.67,173.65,8.54191877]
[1729750232477,4.12,173.68,173.65,7.10061633]
[1729750232672,4.12,173.68,173.65,8.20064633]
[1729750233280,4.12,173.71,173.67,7.10061633]
[1729750233473,4.12,173.71,173.69,9.98201633]
[1729750233873,4.12,173.71,173.69,7.10061633]
[1729750234278,2.4323,173.82,173.69,7.10061633]
[1729750234483,7.10061633,173.77,173.71,7.10061633]
[1729750234687,4.12,173.76,173.71,7.10061633]
[1729750234881,7.0004,173.76,173.71,9.98151633]
[1729750236083,7.0004,173.76,173.71,7.10061633]
[1729750236084,2.8804,173.75,173.71,7.10061633]
[1729750236987,1.2238,173.81,173.71,9.98161633]
[1729750237180,7.10061633,173.78,173.71,9.98161633]
[1729750237689,7.10061633,173.78,173.71,11.08164633]
[1729750238394,2.8803,173.76,173.71,11.08164633]
[1729750238589,4.12,173.75,173.71,11.08164633]
[1729750238989,2.8803,173.76,173.71,11.08164633]
[1729750239197,7.0004,173.75,173.71,1.10003]
[1729750239493,7.0004,173.75,173.7,11.08203633]
[1729750239795,4.12,173.75,173.71,1.44083035]
[1729750239992,4.12,173.75,173.7,8.20083633]
[1729750240394,2.881,173.71,173.68,1.10022]
[1729750240596,7.001,173.71,173.69,6.71272535]
[1729750240895,4.12,173.71,173.67,1.15194]
[1729750241097,4.12,173.71,173.68,1.44101711]
[1729750241300,4.12,173.71,173.67,3.98173]
[1729750241500,4.12,173.71,173.68,1.44104527]
[1729750241688,4.12,173.71,173.67,2.8817]
[1729750241893,4.12,173.71,173.68,1.44105028]
[1729750242094,4.12,173.71,173.67,3.98173]
[1729750242297,4.12,173.71,173.68,6.71421152]
[1729750242496,4.12,173.71,173.67,3.98173]
[1729750242795,4.12,173.71,173.68,1.44103342]
[1729750242999,9.98201633,173.69,173.64,3.98232]
[1729750243191,9.98201633,173.69,173.65,6.71581681]
[1729750243399,9.98201633,173.69,173.66,6.71581681]
[1729750243592,9.98201633,173.69,173.64,4.0344]
[1729750243798,9.98201633,173.69,173.65,6.71658138]
[1729750244102,9.98201633,173.69,173.66,6.71658138]
[1729750244297,9.98201633,173.69,173.65,1.10006]
[1729750244494,7.0011,173.71,173.67,7.10061633]
[1729750244702,2.398,173.76,173.65,1.10006]
[1729750244703,4.12,173.7,173.66,1.44113314]
[1729750245003,4.12,173.7,173.69,9.98201633]
[1729750245204,4.12,173.7,173.69,11.42300318]
[1729750245403,4.12,173.7,173.69,12.52306318]
[1729750245795,4.12,173.7,173.69,17.79674837]
[1729750246795,4.12,173.7,173.69,6.71467204]
[1729750247100,2.8814,173.69,173.65,7.10061633]
[1729750247297,11.22061633,173.7,173.66,6.71748489]
[1729750247493,11.22061633,173.7,173.67,6.71748489]
[1729750247699,11.22061633,173.7,173.68,1.4410834]
[1729750247898,2.8815,173.69,173.65,2.882]
[1729750248194,2.8815,173.69,173.66,6.71798227]
[1729750248397,2.8815,173.69,173.67,6.71798227]
[1729750248602,2.8815,173.69,173.65,3.982]
[1729750248800,2.8815,173.69,173.66,1.44111258]
[1729750248996,2.8815,173.69,173.67,6.71851707]
[1729750249198,2.8815,173.69,173.65,3.982]
[1729750249396,2.8815,173.69,173.66,6.71887084]
[1729750249603,2.8815,173.69,173.67,6.71887084]
[1729750249798,2.8815,173.69,173.65,3.982]
[1729750249998,2.8815,173.69,173.66,6.71881188]
[1729750250300,2.8815,173.69,173.67,6.71881188]
[1729750250611,2.8815,173.69,173.65,3.982]
[1729750250911,2.8815,173.69,173.66,6.71935256]
[1729750251099,2.8815,173.69,173.67,6.71935256]
[1729750251304,2.8815,173.69,173.68,1.44111693]
[1729750254709,2.8815,173.69,173.65,3.982]
[1729750255004,2.8815,173.69,173.66,6.72809607]
[1729750255203,2.8815,173.69,173.67,1.44124886]
[1729750255396,2.8815,173.69,173.65,3.982]
[1729750255591,2.8815,173.69,173.66,6.72937248]
[1729750255799,2.8815,173.69,173.67,1.44124886]
[1729750255996,2.8815,173.69,173.65,3.982]
[1729750256399,2.8815,173.69,173.66,6.73093741]
[1729750256598,2.8815,173.69,173.67,1.44125517]
[1729750256798,2.8815,173.69,173.65,3.982]
[1729750257007,2.8815,173.69,173.66,6.7339819]
[1729750257201,2.8815,173.69,173.67,1.44125665]
[1729750257501,2.8815,173.69,173.65,3.982]